Cogmind - Beta 14 @@@ ROGUE MODE // 2024.11.30 @ 21:38:09 Player: lavinia Result: Destroyed by D-53 Grenadier with Mini Grenade Launcher Performance ------------- Evolutions (1) 500 Regions Visited (4) 800 Robots Destroyed (87) 435 Value Destroyed (1604) 1604 Prototype IDs (9) 180 Alien Tech Used (0) 0 Bonus (555) 555 TOTAL SCORE: 4074 Bonus ------- High Alert Combat Kills 271 Follower Combat Kills 300 Friendly Fire -16 Cogmind --------- Core Integrity 0/400 Matter 300/300 Energy 100/100 System Corruption 0% Temperature Cool (0) Movement Rolling (100) Location -9/Mines Parts ------- > --- POWER (1) -------- (None) > --- PROPULSION (4) --- Compact Wheel Compact Wheel > --- UTILITY (2) ------ Large Storage Unit Transport Network Coupler > --- WEAPON (2) ------- (None) > --- INVENTORY (15) --- Weight Redist. System Improved Terrain Scan Processor Advanced Beam Cannon Shotgun Improved Assault Rifle Makeshift Shrapnel Gun Katana EMP Trap EMP Trap EMP Trap Peak State ------------ > --- POWER ------------ Light Nuclear Core > --- PROPULSION ------- Wheel Wheel Wheel Compact Wheel > --- UTILITY ---------- Large Storage Unit Improved Sensor Array > --- WEAPON ----------- Improved Assault Rifle Katana > --- INVENTORY -------- Weight Redist. System Improved Terrain Scan Processor Transport Network Coupler EM Shotgun Advanced Beam Cannon Shotgun Improved Assault Rifle Improved Assault Rifle Makeshift Shrapnel Gun Grenade Launcher Rocket Launcher EMP Trap EMP Trap EMP Trap [Rating: 19] Favorites ----------- Power Ion Engine Engine Ion Engine Power Core Light Nuclear Core Propulsion Compact Wheel Wheel Compact Wheel Utility Large Storage Unit Device Sensor Array Storage Large Storage Unit Processor Transport Network Coupler Weapon Improved Assault Rifle Energy Gun Medium Laser Energy Cannon Advanced Beam Cannon Ballistic Gun Improved Assault Rifle Launcher Grenade Launcher Slashing Weapon Katana Build | -11 -10 -10 -9 -9 ------- Run | Yrd Mat Min Mat Min Slots Evolved 2 | . . . 2 . Power . | . . . . . Propulsion 2 | . . . 2 . Utility . | . . . . . Weapon . | . . . . . Parts Attached 78 | 6 12 9 38 13 Power 6 | 1 . 1 3 1 Engine 3 | 1 . 1 1 . Core 3 | . . . 2 1 Reactor . | . . . . . Propulsion 24 | 2 4 3 9 6 Treads . | . . . . . Leg . | . . . . . Wheel 24 | 2 4 3 9 6 Hover . | . . . . . Flight . | . . . . . Utility 5 | 1 2 . 1 1 Device 2 | . 1 . 1 . Storage 2 | 1 1 . . . Processor 1 | . . . . 1 Hackware . | . . . . . Protection . | . . . . . Artifact . | . . . . . Weapon 43 | 2 6 5 25 5 Energy Gun 11 | 2 3 2 3 1 Energy Cannon 3 | . . . 3 . Ballistic Gun 11 | . 2 2 6 1 Ballistic Cannon . | . . . . . Launcher 11 | . 1 1 8 1 Special Weapon . | . . . . . Impact Weapon . | . . . . . Slashing Weapon 7 | . . . 5 2 Piercing Weapon . | . . . . . Special Melee Weapon . | . . . . . Unidentified Prototypes 2 | . . . 2 . Parts Lost 24 | . 4 3 10 7 Power 3 | . . 1 1 1 Propulsion 13 | . 3 1 6 3 Utility 1 | . . . 1 . Weapon 7 | . 1 1 2 3 Highest Loss Streak 6 | . 3 1 6 6 To Critical Strikes . | . . . . . Average Slot Usage (%) 89 | . 95 94 86 75 Engine 6 | . 14 8 1 . Core 4 | . . . 8 7 Wheel 29 | . 25 27 33 31 Device 11 | . 12 14 10 . Storage 12 | . 14 14 11 11 Energy Gun 6 | . 17 4 1 . Energy Cannon 1 | . . . 2 . Ballistic Gun 11 | . 8 11 12 13 Launcher 4 | . 1 11 2 . Slashing Weapon 1 | . . . 2 5 Peak Build Rating 19 | 6 8 9 19 17 Average Rating 10 | 4 6 7 14 14 On Entrance 6 | . 6 7 8 10 Naked Turns . | . . . . . Heaviest Build 33 | 13 30 32 33 31 Greatest Support 64 | 26 32 32 58 64 Greatest Overweight (x) 3 | 1 2 1 2 3 Average Overweight (x) . | . . . . . Largest Inventory Capacity 15 | 8 15 15 15 15 Average Capacity 14 | 7 11 15 15 15 Most Carried 15 | 1 7 10 15 12 Average Carried 9 | . 5 7 12 11 Final Capacity 15 | 8 15 15 15 15 Final Carried 12 | 1 5 10 12 10 Class Distribution -------------------- 58% | Scavenger-Mutant 41% | Mutant Dominant Class ---------------- Mutant | -10/Materials Scavenger-Mutant | -10/Mines Scavenger-Mutant | -9/Materials Scavenger-Mutant | -9/Mines Resources | -11 -10 -10 -9 -9 ----------- Run | Yrd Mat Min Mat Min Matter Collected 1564 | 189 227 199 714 235 Remotely . | . . . . . Salvage Created 2615 | . 488 506 1243 378 Parts 183 | . 37 31 95 20 Haulers Intercepted 3 | . 1 . 2 . Recyclers Shooed 8 | . . 3 2 3 Parts Field Recycled . | . . . . . Retrieved Matter . | . . . . . Parts Self-Destructed . | . . . . . Prevented . | . . . . . Kills | -11 -10 -10 -9 -9 ------- Run | Yrd Mat Min Mat Min Combat Hostiles Destroyed 45 | . 10 3 30 2 Melee 10 | . . . 9 1 Guns 15 | . 5 1 8 1 AOE 20 | . 5 2 13 . Classes Destroyed 12 | . 8 1 3 . Worker 15 | . 3 3 7 2 Builder 4 | . 1 2 1 . Tunneler 3 | . 2 1 . . Hauler 3 | . 1 . 2 . Recycler 9 | . . 5 1 3 Mechanic 1 | . . . 1 . Operator 2 | . 1 . 1 . Watcher 5 | . 2 . 3 . Swarmer 16 | . 3 2 11 . Grunt 21 | . 7 1 11 2 Protector 1 | . . . 1 . Sentry 7 | . . . 7 . Best Kill Streak 9 | . 5 9 8 6 Combat Bots Only 5 | . 3 2 5 2 Max Kills in Single Turn 3 | . 3 2 3 1 Gunslinging . | . . . . . Exploded 3 | . 2 1 3 . Melee 1 | . . . 1 1 Uniques/NPCs Destroyed . | . . . . . Combat | -11 -10 -10 -9 -9 -------- Run | Yrd Mat Min Mat Min Hostile Shots Fired 185 | . 42 5 101 37 Missed 60 | . 13 1 41 5 Damage Taken 2213 | . 540 86 948 639 Core 597 | . 151 26 139 281 Absorbed by Shields . | . . . . . Regen/Repaired (Parts) 32 | . . . 32 . Core Remaining (%) 64 | 100 . 29 . . Volleys Fired 165 | . 49 39 61 16 Largest 2 | . 2 2 2 2 Hottest 100 | . 100 90 98 78 Shots Fired 282 | . 98 52 103 29 Gun 246 | . 94 50 74 28 Cannon 5 | . . . 5 . Launcher 31 | . 4 2 24 1 Special . | . . . . . Kinetic 153 | . 31 28 69 25 Thermal 65 | . 55 . 10 . Explosive 31 | . 4 2 24 1 Electromagnetic 33 | . 8 22 . 3 Robot Hit Streak 14 | . 9 10 14 6 Robot Miss Streak 4 | . 4 3 3 3 Penetration Max . | . . . . . Secondary Targets 3 | . 2 1 . . Max Gunslinging Chain 1 | . 1 1 . . Shots Hit Robots 190 | . 64 30 75 21 Core Hits 127 | . 29 23 64 11 Critical Kills . | . . . . . Critical Parts Destroyed . | . . . . . Critical Strikes 4 | . 3 . 1 . Burn 3 | . 3 . . . Sever 1 | . . . 1 . Melee Attacks 28 | . . . 24 4 Impact . | . . . . . Slashing 28 | . . . 24 4 Piercing . | . . . . . Sneak Attacks 8 | . . . 6 2 Combat Hostiles . | . . . . . Follow-up Attacks . | . . . . . Damage Inflicted 5515 | . 1599 578 2770 568 Guns 2014 | . 816 318 591 289 Cannons 20 | . . . 20 . Explosions 2439 | . 783 260 1271 125 Melee 1042 | . . . 888 154 Ramming . | . . . . . Kinetic 1218 | . 261 125 567 265 Thermal 863 | . 623 196 44 . Explosive 2054 | . 594 64 1271 125 Electromagnetic 338 | . 121 193 . 24 Impact . | . . . . . Slashing 1042 | . . . 888 154 Piercing . | . . . . . Highest Corruption . | . . . . . Average Corruption . | . . . . . Corruption Purged . | . . . . . Corruption Blocked . | . . . . . Overload Shots . | . . . . . Overflow Damage 281 | . 69 17 164 31 Projectiles . | . . . . . Explosions 197 | . 69 17 98 13 Melee 84 | . . . 66 18 Knockbacks . | . . . . . Impact . | . . . . . Kinetic . | . . . . . Secondary . | . . . . . Self-Inflicted Damage 521 | . 214 48 220 39 Shots 14 | . 3 3 7 1 Rammed . | . . . . . Targets Rammed . | . . . . . Kicked . | . . . . . Crushed . | . . . . . Highest Temperature 174 | . 174 159 84 85 Average Temperature 56 | . 68 49 22 43 Received Heat Transfer 640 | . 168 12 267 193 Siege Activations . | . . . . . Robots Corrupted . | . . . . . Combat Hostiles . | . . . . . Parts Fried . | . . . . . Impact Corruptions . | . . . . . Robots Melted . | . . . . . Combat Hostiles . | . . . . . Parts Melted 5 | . 3 2 . . Heat Transferred 2028 | . 1617 300 111 . Parts Sabotaged . | . . . . . Parts Stolen . | . . . . . Parts Stripped . | . . . . . Power Chain Reactions 5 | . 1 4 . . Alert | -11 -10 -10 -9 -9 ------- Run | Yrd Mat Min Mat Min Peak Influence 917 | . 270 257 917 422 Initial 357 | . . 104 29 357 Average 341 | . 120 165 549 404 Maximum Alert Level 3 | . 1 1 3 2 Low Security (%) 38 | 100 88 51 7 . Level 1 27 | . 11 48 26 31 Level 2 21 | . . . 38 68 Level 3 12 | . . . 27 . Level 4 . | . . . . . Level 5 . | . . . . . High Security . | . . . . . Max Security . | . . . . . Squads Dispatched 5 | . 2 . 3 . Investigation 1 | . 1 . . . Extermination . | . . . . . Reinforcement 3 | . 1 . 2 . Assault 1 | . . . 1 . Garrison . | . . . . . Intercept . | . . . . . Searches Triggered . | . . . . . Construction Impeded . | . . . . . Haulers Reinforced . | . . . . . Active Scanning Responses . | . . . . . Cargo Convoy Interrupts . | . . . . . Stealth | -11 -10 -10 -9 -9 --------- Run | Yrd Mat Min Mat Min Distress Signals 3 | . . . 3 . Communications Jammed . | . . . . . Distress Signals . | . . . . . Times Spotted 90 | . 16 4 48 22 Peak Tracking Total 21 | . 4 3 6 21 Tactical Retreats . | . . . . . Traps | -11 -10 -10 -9 -9 ------- Run | Yrd Mat Min Mat Min Traps Triggered . | . . . . . Indirectly . | . . . . . Trap Hack Attempts . | . . . . . Triggered . | . . . . . Disarmed . | . . . . . Reprogrammed . | . . . . . Reused . | . . . . . Traps Extracted . | . . . . . Installed . | . . . . . Triggered . | . . . . . Most Traps Carried 3 | . . 3 3 3 Machines | -11 -10 -10 -9 -9 ---------- Run | Yrd Mat Min Mat Min Machines Disabled 11 | . 4 1 6 . Max in Single Turn 1 | . 1 1 1 . Machines Repaired . | . . . . . Machines Dismantled . | . . . . . Machines Sabotaged . | . . . . . Overloaded Fab Kills . | . . . . . Hacking | -11 -10 -10 -9 -9 --------- Run | Yrd Mat Min Mat Min Machines Accessed 15 | . 6 . 9 . Terminals 12 | . 6 . 6 . Fabricators . | . . . . . Repair Stations 2 | . . . 2 . Recycling Units . | . . . . . Scanalyzers 1 | . . . 1 . Garrison Access . | . . . . . Total Hacks 57 | . 23 . 34 . Successful 30 | . 10 . 20 . Failed 27 | . 13 . 14 . Catastrophic 7 | . 3 . 4 . Database Lockouts . | . . . . . Manual 26 | . 15 . 11 . Terminals 46 | . 23 . 23 . Fabricators . | . . . . . Repair Stations 8 | . . . 8 . Recycling Units . | . . . . . Scanalyzers 3 | . . . 3 . Garrison Access . | . . . . . Terminal Hacks 21 | . 10 . 11 . Robot Analysis 1 | . 1 . . . Prototype ID Bank 5 | . 3 . 2 . Branch Access Points 4 | . 2 . 2 . Emergency Access Points 1 | . . . 1 . Terminal Index 2 | . 1 . 1 . Alert Level 1 | . . . 1 . Locate Traps 2 | . 1 . 1 . Dispatch Records 1 | . 1 . . . Zone Layout 4 | . 1 . 3 . Fabricator Hacks . | . . . . . Repair Station Hacks 6 | . . . 6 . Scan Component 4 | . . . 4 . Repair 2 | . . . 2 . Recycling Unit Hacks . | . . . . . Scanalyzer 3 | . . . 3 . Insert Component 1 | . . . 1 . Analyze 2 | . . . 2 . Garrison Access Hacks . | . . . . . Unauthorized Hacks . | . . . . . Terminals . | . . . . . Fabricators . | . . . . . Repair Stations . | . . . . . Recycling Units . | . . . . . Scanalyzers . | . . . . . Garrison Access . | . . . . . Data Cores Recovered 1 | . . . 1 . Used . | . . . . . Hacking Detections 15 | . 6 . 9 . Full Trace Events 3 | . 1 . 2 . Feedback Events . | . . . . . Feedback Blocked . | . . . . . Robot Schematics Acquired . | . . . . . Robots Built . | . . . . . Authchips . | . . . . . Time . | . . . . . Total Robot Build Rating . | . . . . . Part Schematics Acquired 1 | . . . 1 . Parts Built . | . . . . . Authchips . | . . . . . Time . | . . . . . Total Part Build Rating . | . . . . . Parts Repaired 2 | . . . 2 . Time 52 | . . . 52 . Parts Recycled . | . . . . . Recycled Matter . | . . . . . Retrieved Matter . | . . . . . Retrieved Components . | . . . . . Parts Scanalyzed 1 | . . . 1 . Part Schematics Acquired 1 | . . . 1 . Parts Damaged . | . . . . . Bothacking | -11 -10 -10 -9 -9 ------------ Run | Yrd Mat Min Mat Min Used RIF Installer . | . . . . . Robots Hacked . | . . . . . Non-combat . | . . . . . Combat . | . . . . . Robot Hacks Applied . | . . . . . Relay Couplers Released . | . . . . . Fabnet Peak Effective % . | . . . . . Robots Rewired . | . . . . . Allies Hacked . | . . . . . Hacks Repelled . | . . . . . Allies | -11 -10 -10 -9 -9 -------- Run | Yrd Mat Min Mat Min Total Allies 3 | . . 3 . . Largest Group 3 | . . 3 3 . Highest-Rated Group 40 | . . 40 40 . Highest-Rated Ally 16 | . . 16 16 . Total Orders . | . . . . . Ally Attacks 67 | . . 4 63 . Total Damage 698 | . . 42 656 . Kills 15 | . . 1 14 . Allies Corrupted . | . . . . . Allies Melted . | . . . . . Intel | -11 -10 -10 -9 -9 ------- Run | Yrd Mat Min Mat Min Robot Analysis Total 1 | . 1 . . . Derelict Logs Recovered 2 | . . 1 . 1 Drone Launches . | . . . . . Drone Recoveries . | . . . . . Exploration | -11 -10 -10 -9 -9 ------------- Run | Yrd Mat Min Mat Min Turns Passed 2829 | 37 751 587 1313 141 Spaces Moved 1974 | 31 592 426 856 69 Core 2 | 2 . . . . Treads . | . . . . . Legs . | . . . . . Wheels 1972 | 29 592 426 856 69 Hover . | . . . . . Flight . | . . . . . Fastest Speed 50 | 50 90 95 85 85 Average Speed 97 | 89 95 99 98 95 Slowest Speed 125 | 100 110 115 115 125 Overloaded Moves . | . . . . . Propulsion Burnouts . | . . . . . Robots Hopped . | . . . . . Cave-ins Triggered . | . . . . . Exploration Rate (%) 58 | 3 90 95 83 19 Regions Visited 4 Branch Regions 2 Pre-discovered Areas 1 | . . . . 1 Known Exits Taken 2 | . 1 . 1 . Unknown Exits Taken 2 | 1 . 1 . . Scrap Searched 2 | . . 1 . 1 Spaces Dug . | . . . . . Terrain Destroyed 283 | . 79 28 166 10 Melee . | . . . . . Projectile . | . . . . . AOE 283 | . 79 28 166 10 Terrain Rammed . | . . . . . Walls Destroyed . | . . . . . Machines Disabled . | . . . . . Actions | -11 -10 -10 -9 -9 --------- Run | Yrd Mat Min Mat Min Total 2533 | 37 676 538 1178 104 Wait 249 | . 14 56 179 . Move 1970 | 30 591 425 855 69 Hop . | . . . . . Pick Up 26 | 1 8 6 11 . Fast Attach 30 | 6 2 5 11 6 Attach 10 | . 3 1 4 2 Detach . | . . . . . Swap 38 | . 7 3 23 5 Drop 17 | . 2 3 10 2 Fire 165 | . 49 39 61 16 Melee 28 | . . . 24 4 Ram . | . . . . . Kick . | . . . . . Crush . | . . . . . Escape Stasis . | . . . . . Rewire . | . . . . . Trap . | . . . . . Miscellaneous . | . . . . . Route ------- -11/Scrapyard -10/Materials (discovered 5 exits: *Mat x3 / *Min x2) -10/Mines (discovered 2 exits: *Mat x2) -9/Materials (discovered 3 exits: [*Mat x2] / *Min) -9/Mines (discovered 1 exit: [*Mat]) History --------- Turn | Location | Event 18 | -11/Scrapyard | Discovered new exit (range 16) 38 | -11/Scrapyard | Entered Materials 131 | -10/Materials | Discovered new exit (range 5) 172 | -10/Materials | Discovered new exit (range 17) 292 | -10/Materials | Identified exit to Mines 318 | -10/Materials | Build established: Mutant 509 | -10/Materials | Discovered new exit (range 11) 716 | -10/Materials | Core integrity fell below 50% 746 | -10/Materials | Lost 3 parts (2n1w) 789 | -10/Materials | Entered Mines 830 | -10/Mines | Discovered new exit (range 6) 875 | -10/Mines | Assisted by bots powering up and referring to "LRC-V3" 1048 | -10/Mines | Received a Rocket Launcher from a helpful Derelict 1151 | -10/Mines | Found a hidden stash of uninstalled traps 1168 | -10/Mines | Learned Materials emergency access door positions 1172 | -10/Mines | A weapon hastily lodged in a ceiling crevice suddenly fell to the ground 1240 | -10/Mines | Discovered new exit (range 11) 1357 | -10/Mines | Build established: Scavenger-Mutant 1376 | -10/Mines | Entered Materials 1376 | -9/Materials | Accompanied by 3 allies 1376 | -9/Materials | Evolved 2 slots: Propulsion x2 1519 | -9/Materials | Repaired Com. Wheel 1554 | -9/Materials | Repaired Com. Wheel 1666 | -9/Materials | Discovered new exit (range 15) 2188 | -9/Materials | Discovered new exit (range 9) 2188 | -9/Materials | Identified exit to Mines 2574 | -9/Materials | Lost 6 parts (1p3n2w) 2576 | -9/Materials | First assault squad dispatched 2689 | -9/Materials | Entered Mines 2761 | -9/Mines | Discovered new exit (range 3) 2797 | -9/Mines | Learned location of Storage (-8) 2802 | -9/Mines | Assembled infested the area 2809 | -9/Mines | Found DCF Scrap (13 items) 2822 | -9/Mines | Core integrity fell below 50% 2828 | -9/Mines | Core integrity fell below 20% 2830 | -9/Mines | Destroyed by D-53 Grenadier with Mini Grenade Launcher Last Messages --------------- C-30 ARC bursts open, deploying its payload. D-53 Grenadier unfolds itself. [Achievement: Hunted] Imp. Assault Rifle destroyed. as-65673 destroyed. as-69734 destroyed. Rocket Launcher destroyed. Destroyed Rocket Launcher. Destroyed Asb. F-torch. EM Shotgun destroyed. as-33556 destroyed. as-33541 destroyed. Lgt. Nuclear Core destroyed. Com. Wheel destroyed. as-57689 destroyed. Com. Wheel destroyed. Plasma Injector explodes. D-53 Grenadier destroyed. as-83144 destroyed. The unstable cave ceiling collapses. Map ----- +----------------------------------------------------+ | ??????????????????????????????????????????????? | | ??????????????????????????????????????????????? | | ??????????????????????????????????????????????? | | ??????????????????????????????????????????????? | | ??????????????????????????????????????????????? | | ?????????????????????? ??????????????????????? | | ?????????????????????? ??????????????????????? | | ?????????????????????? ??????????????????????? | | ?????????????????????? ??????????????????????? | | ?????????????????????? #?????? ?? ??????????? | | ?????????????????????? a#???#? ???????#### | | ??????????????????????# #??# ???????# | | ??????????????????????#a#?# ????????# | | ??????????????????????# ?a ??????####*"" | | ??????????????????????#a##a ???????#==%!"" | | ????????????????????### # #????????# ## "" | | ???????????????????## # # #??#??????# ## | | ???????????????????# a ;###;##?????# ## | | ???????????????????# #; ;####### ##### | | ??????????????????## "%" #???? | | ??????????????????# % d #########???? | | ??????????????????# =%= ##?????????? | | ??????????????????# ! u #???????? | | ??????????????????# "## #???????? | | ??????????????????## ; ##??#???????? | | ???????????????????# @ ####" ##???????????? | | ??????????????# ##???# #????????????? | | ??????????????### ### #????# #????????????? | | ????????????????#???# #???? #????????????? | | ????????????????????# #???? #????????????? | | ???????????????????? #???? ????????????? | | ???????????????????? ???? #???????????? | | ??????????????????? #????# #???????????? | | ??????????????????? ####?????# #???????????? | | ???????????????????#?????????? ?????????????? | | ?????????????????????????????? ??????????????? | | ??????????????????????????????????????????????? | | ??????????????????????????????????????????????? | | ??????????????????????????????????????????????? | | ??????????????????????????????????????????????? | | ??????????????????????????????????????????????? | | ??????????????????????????????????????????????? | | ??????????????????????????????????????????????? | | ??????????????????????????????????????????????? | | ??????????????????????????????????????????????? | | ??????????????????????????????????????????????? | | ??????????????????????????????????????????????? | | ??????????????????????????????????????????????? | | ??????????????????????????????????????????????? | | ??????????????????????????????????????????????? | +----------------------------------------------------+ Best States ------------- Heat Dissipation 28 Energy Generation 14 Energy Capacity 265 Matter Stores 300 Matter Capacity 300 Sight Range 16 Robot Scan Range 15 Terrain Scan Density 10 Evasion (%) 43 Item Schematics ----------------- Imp. Assault Rifle | -9/Materials | Scanalyzed Robot Schematics ------------------ None Fabricated ------------ Nothing Alien Tech Used ----------------- None Achievements -------------- Hey, That's Mine! Hunted Significant Disruption Challenges ------------ None Game ------ Seed ConstructBarrageHammer Manual? 0 Play Time 00:50:11 Cumulative 7.1 hours Start 2024.11.30 @ 17:13:04 End 2024.11.30 @ 21:38:09 Sessions 2 Manual Loads 0 Difficulty Rogue Special Mode None Game No. 10 Rogue 10 Adventurer 0 Explorer 0 Win Type - Total 0 Types 0/0/0/0/0/0/0/0/0 Lore% 7 Gallery% 7 Achievement% 11 Wizard Run 0 Options --------- Layout 1 ASCII 0 Keyboard 0 Movement Mouse Keybinds 0 Fullscreen 2 Font 24/Smallcaps Map View 50x35 Zoom Use 0% Tactical HUD 0 Map Filters NONE Filters NONE Steam 1 RUN: fabbf2c2-796f-4080-83ed-fd89486845ee